[Event "*** Titled Tuesday Blitz"]
[Site "Chess.com"]
[Date "2018.06.05"]
[Round "4"]
[White "x-3738459472"]
[Black "kleinebeer98"]
[Result "1/2-1/2"]
[WhiteElo "2450"]
[BlackElo "2470"]
[TimeControl "180+2"]
[EndTime "13:57:25 PDT"]
[Termination "Game drawn by repetition"]

1. e4 {[%clk 0:03:01.9]} 1... c5 {[%clk 0:03:00.5]} 2. Nc3 {[%clk 0:03:02]} 2...
a6 {[%clk 0:03:01.3]} 3. Nf3 {[%clk 0:02:59.4]} 3... e6 {[%clk 0:02:56.3]} 4. d4
{[%clk 0:03:00]} 4... cxd4 {[%clk 0:02:58.2]} 5. Nxd4 {[%clk 0:03:01.7]} 5...
Nc6 {[%clk 0:02:58.8]} 6. Nxc6 {[%clk 0:03:02.2]} 6... bxc6 {[%clk 0:02:59.8]}
7. Bd3 {[%clk 0:03:04.1]} 7... Qc7 {[%clk 0:02:59.8]} 8. O-O {[%clk 0:03:05.2]}
8... Nf6 {[%clk 0:02:59.9]} 9. Qe2 {[%clk 0:03:06]} 9... d5 {[%clk 0:02:58.8]}
10. b3 {[%clk 0:03:06.4]} 10... Bd6 {[%clk 0:02:57.5]} 11. h3 {[%clk 0:03:07]}
11... Be5 {[%clk 0:02:56.7]} 12. Bb2 {[%clk 0:03:08.2]} 12... O-O {[%clk
0:02:47.6]} 13. Kh1 {[%clk 0:03:08.6]} 13... Re8 {[%clk 0:02:44.9]} 14. Rae1
{[%clk 0:03:04.8]} 14... Qa5 {[%clk 0:02:38.7]} 15. Qd2 {[%clk 0:02:29]} 15...
dxe4 {[%clk 0:02:30.6]} 16. Bxe4 {[%clk 0:02:27.6]} 16... Nxe4 {[%clk 0:02:31]}
17. Rxe4 {[%clk 0:02:26.9]} 17... Bf6 {[%clk 0:02:30.8]} 18. Rd1 {[%clk
0:02:22.9]} 18... c5 {[%clk 0:02:27.2]} 19. Nd5 {[%clk 0:02:17.3]} 19... Qxd2
{[%clk 0:02:22.3]} 20. Nxf6+ {[%clk 0:02:18.1]} 20... gxf6 {[%clk 0:02:23]} 21.
Rxd2 {[%clk 0:02:12]} 21... f5 {[%clk 0:02:19]} 22. Re3 {[%clk 0:02:12.1]} 22...
Ra7 {[%clk 0:01:51.5]} 23. Bf6 {[%clk 0:01:54.7]} 23... Rd7 {[%clk 0:01:48.7]}
24. Red3 {[%clk 0:01:51.5]} 24... Rxd3 {[%clk 0:01:47.7]} 25. Rxd3 {[%clk
0:01:53.4]} 25... Bb7 {[%clk 0:01:37.9]} 26. Rd7 {[%clk 0:01:50.6]} 26... Be4
{[%clk 0:01:37]} 27. c3 {[%clk 0:01:47.8]} 27... Bb1 {[%clk 0:01:36]} 28. a3
{[%clk 0:01:47.9]} 28... Ba2 {[%clk 0:01:28.5]} 29. b4 {[%clk 0:01:47.1]} 29...
cxb4 {[%clk 0:01:29.7]} 30. axb4 {[%clk 0:01:45.9]} 30... Bc4 {[%clk 0:01:27.1]}
31. Rc7 {[%clk 0:01:45.8]} 31... Bd3 {[%clk 0:01:24.7]} 32. c4 {[%clk 0:01:47]}
32... e5 {[%clk 0:01:15.4]} 33. c5 {[%clk 0:01:48.1]} 33... f4 {[%clk
0:01:13.3]} 34. c6 {[%clk 0:01:47.1]} 34... e4 {[%clk 0:01:09.6]} 35. Re7 {[%clk
0:01:35.5]} 35... Rxe7 {[%clk 0:01:00.8]} 36. Bxe7 {[%clk 0:01:35.1]} 36... e3
{[%clk 0:00:59.8]} 37. fxe3 {[%clk 0:01:31.2]} 37... fxe3 {[%clk 0:01:01.7]} 38.
c7 {[%clk 0:01:31.8]} 38... Bf5 {[%clk 0:01:03]} 39. Kg1 {[%clk 0:01:32.4]}
39... Kg7 {[%clk 0:00:50.5]} 40. Kf1 {[%clk 0:01:33.2]} 40... f6 {[%clk
0:00:48.1]} 41. Ke2 {[%clk 0:01:33.8]} 41... Kf7 {[%clk 0:00:49.5]} 42. Bc5
{[%clk 0:01:34.3]} 42... Ke8 {[%clk 0:00:48.7]} 43. Kxe3 {[%clk 0:01:34.2]}
43... Kd7 {[%clk 0:00:50.1]} 44. Bb6 {[%clk 0:01:33.5]} 44... Kc6 {[%clk
0:00:51.4]} 45. Ba5 {[%clk 0:01:34.2]} 45... Be6 {[%clk 0:00:45.2]} 46. Ke4
{[%clk 0:01:33.3]} 46... Kd6 {[%clk 0:00:43.3]} 47. h4 {[%clk 0:01:26.2]} 47...
h5 {[%clk 0:00:43.4]} 48. g3 {[%clk 0:01:26]} 48... Kc6 {[%clk 0:00:41.5]} 49.
Kd4 {[%clk 0:01:26.1]} 49... Kd6 {[%clk 0:00:42.3]} 50. Ke4 {[%clk 0:01:24.9]}
50... Kc6 {[%clk 0:00:43.4]} 51. Kf4 {[%clk 0:01:25.7]} 51... Kb5 {[%clk
0:00:41.9]} 52. Ke4 {[%clk 0:01:22.3]} 52... Kc6 {[%clk 0:00:42.7]} 1/2-1/2

[Event "*** Titled Tuesday Blitz"]
[Site "Chess.com"]
[Date "2018.06.05"]
[Round "4"]
[White "UNDERTAKER2001"]
[Black "AlexTruskavetsky"]
[Result "1-0"]
[WhiteElo "2359"]
[BlackElo "2271"]
[TimeControl "180+2"]
[EndTime "13:57:29 PDT"]
[Termination "UNDERTAKER2001 won on time"]

1. d4 {[%clk 0:03:01.9]} 1... Nf6 {[%clk 0:03:00.1]} 2. c4 {[%clk 0:03:03]} 2...
g6 {[%clk 0:03:00.6]} 3. Nc3 {[%clk 0:03:04.3]} 3... d5 {[%clk 0:03:01.8]} 4.
Bg5 {[%clk 0:03:04.9]} 4... Ne4 {[%clk 0:03:01.8]} 5. Bh4 {[%clk 0:03:06]} 5...
Nxc3 {[%clk 0:02:59.5]} 6. bxc3 {[%clk 0:03:07.9]} 6... Bg7 {[%clk 0:03:00.2]}
7. Nf3 {[%clk 0:03:07.2]} 7... O-O {[%clk 0:02:53.3]} 8. cxd5 {[%clk 0:03:07.5]}
8... Qxd5 {[%clk 0:02:53.8]} 9. Bxe7 {[%clk 0:03:08]} 9... Re8 {[%clk
0:02:54.3]} 10. Bh4 {[%clk 0:02:53.9]} 10... c5 {[%clk 0:02:54.3]} 11. e3 {[%clk
0:02:52.7]} 11... cxd4 {[%clk 0:02:25.6]} 12. cxd4 {[%clk 0:02:54.6]} 12... Nc6
{[%clk 0:02:16.7]} 13. Be2 {[%clk 0:02:52.4]} 13... Qa5+ {[%clk 0:02:12.3]} 14.
Qd2 {[%clk 0:02:52.2]} 14... Qxd2+ {[%clk 0:02:03.9]} 15. Kxd2 {[%clk
0:02:48.2]} 15... Bf5 {[%clk 0:01:55.6]} 16. Bd3 {[%clk 0:02:44.1]} 16... Bg4
{[%clk 0:01:54.1]} 17. Rab1 {[%clk 0:02:44.3]} 17... b6 {[%clk 0:01:45.7]} 18.
Rhc1 {[%clk 0:02:41.3]} 18... Na5 {[%clk 0:01:36.2]} 19. Rc7 {[%clk 0:02:32.8]}
19... Be6 {[%clk 0:01:29.2]} 20. Rb2 {[%clk 0:02:13.8]} 20... Rac8 {[%clk
0:01:27.6]} 21. Rxa7 {[%clk 0:02:06.4]} 21... Nc4+ {[%clk 0:01:07]} 22. Bxc4
{[%clk 0:02:05.9]} 22... Rxc4 {[%clk 0:01:07.2]} 23. Rxb6 {[%clk 0:02:03.7]}
23... Rec8 {[%clk 0:01:04.8]} 24. Rb2 {[%clk 0:01:58.7]} 24... Bf8 {[%clk
0:01:04.3]} 25. Ne5 {[%clk 0:01:54.3]} 25... Bb4+ {[%clk 0:01:02.3]} 26. Ke2
{[%clk 0:01:47.8]} 26... Rc2+ {[%clk 0:00:59.7]} 27. Rxc2 {[%clk 0:01:48.2]}
27... Rxc2+ {[%clk 0:01:01.2]} 28. Kf3 {[%clk 0:01:48.8]} 28... Bd5+ {[%clk
0:00:57.3]} 29. e4 {[%clk 0:01:44.4]} 29... Rc3+ {[%clk 0:00:54.4]} 30. Kf4
{[%clk 0:01:44]} 30... Be6 {[%clk 0:00:29.5]} 31. d5 {[%clk 0:01:41.6]} 31...
Bc8 {[%clk 0:00:30]} 32. Be7 {[%clk 0:01:34.4]} 32... Bxe7 {[%clk 0:00:09.3]}
33. Rxe7 {[%clk 0:01:36.3]} 33... Rc2 {[%clk 0:00:07.5]} 34. Kg5 {[%clk
0:01:24]} 34... Rxf2 {[%clk 0:00:04.5]} 35. Re8+ {[%clk 0:01:01.7]} 35... Kg7
{[%clk 0:00:04.9]} 36. Rxc8 {[%clk 0:01:02.7]} 36... f6+ {[%clk 0:00:05.9]} 37.
Kg4 {[%clk 0:01:03.3]} 37... fxe5 {[%clk 0:00:07.4]} 38. Kg3 {[%clk 0:01:00.9]}
38... Rxa2 {[%clk 0:00:07.2]} 39. Re8 {[%clk 0:01:01.3]} 39... Ra3+ {[%clk
0:00:02.8]} 40. Kg4 {[%clk 0:01:02.3]} 1-0

[Event "*** Titled Tuesday Blitz"]
[Site "Chess.com"]
[Date "2018.06.05"]
[Round "4"]
[White "korason34"]
[Black "GrigorGrigorov"]
[Result "1-0"]
[WhiteElo "2477"]
[BlackElo "2670"]
[TimeControl "180+2"]
[EndTime "13:57:30 PDT"]
[Termination "korason34 won by resignation"]

1. d4 {[%clk 0:03:01.9]} 1... e6 {[%clk 0:02:59.7]} 2. c4 {[%clk 0:02:59.5]}
2... Nf6 {[%clk 0:03:00.4]} 3. Nc3 {[%clk 0:02:56.2]} 3... Bb4 {[%clk
0:03:00.8]} 4. f3 {[%clk 0:02:56.8]} 4... Nc6 {[%clk 0:03:01.1]} 5. a3 {[%clk
0:02:51.7]} 5... Bxc3+ {[%clk 0:03:01.7]} 6. bxc3 {[%clk 0:02:53.2]} 6... b6
{[%clk 0:03:02.9]} 7. e4 {[%clk 0:02:42.9]} 7... Ba6 {[%clk 0:03:03]} 8. Bd3
{[%clk 0:02:40.9]} 8... Na5 {[%clk 0:03:01.3]} 9. Qe2 {[%clk 0:02:38.9]} 9...
Nb3 {[%clk 0:02:41.5]} 10. Rb1 {[%clk 0:02:35.8]} 10... Nxc1 {[%clk 0:02:42.5]}
11. Rxc1 {[%clk 0:02:37.5]} 11... O-O {[%clk 0:02:43.3]} 12. Nh3 {[%clk
0:02:31.7]} 12... d5 {[%clk 0:02:38.7]} 13. cxd5 {[%clk 0:02:23.3]} 13... Bxd3
{[%clk 0:02:39.4]} 14. Qxd3 {[%clk 0:02:25.2]} 14... exd5 {[%clk 0:02:40.8]} 15.
e5 {[%clk 0:02:23.4]} 15... Nd7 {[%clk 0:02:02.8]} 16. O-O {[%clk 0:02:22.5]}
16... c5 {[%clk 0:02:00.8]} 17. f4 {[%clk 0:02:21.3]} 17... Rc8 {[%clk
0:01:48.7]} 18. Ng5 {[%clk 0:02:18.2]} 18... g6 {[%clk 0:01:35.7]} 19. Qh3
{[%clk 0:02:17.4]} 19... h5 {[%clk 0:01:31.9]} 20. e6 {[%clk 0:02:17.4]} 20...
Nf6 {[%clk 0:01:26.5]} 21. exf7+ {[%clk 0:02:13.5]} 21... Rxf7 {[%clk
0:01:12.9]} 22. Nxf7 {[%clk 0:01:54.6]} 22... Kxf7 {[%clk 0:01:13.3]} 23. Rce1
{[%clk 0:01:53.6]} 23... Qd7 {[%clk 0:00:54.7]} 24. f5 {[%clk 0:01:30.1]} 24...
g5 {[%clk 0:00:55.4]} 25. Re6 {[%clk 0:01:29.2]} 25... cxd4 {[%clk 0:00:49.9]}
26. cxd4 {[%clk 0:01:29.5]} 26... Qa4 {[%clk 0:00:50.8]} 27. Qe3 {[%clk
0:00:50.6]} 27... Ne4 {[%clk 0:00:51.3]} 28. Rxe4 {[%clk 0:00:41.1]} 28... dxe4
{[%clk 0:00:51.8]} 29. Qxe4 {[%clk 0:00:43]} 29... Re8 {[%clk 0:00:30]} 30. Qd5+
{[%clk 0:00:42.9]} 30... Kf8 {[%clk 0:00:23.9]} 31. Qd6+ {[%clk 0:00:43.3]}
31... Kf7 {[%clk 0:00:24.2]} 32. Qg6+ {[%clk 0:00:38.3]} 32... Kf8 {[%clk
0:00:25.3]} 33. f6 {[%clk 0:00:30.8]} 33... Qxd4+ {[%clk 0:00:24]} 34. Kh1
{[%clk 0:00:31.6]} 34... Qd7 {[%clk 0:00:17.3]} 35. f7 {[%clk 0:00:32.2]} 1-0

[Event "*** Titled Tuesday Blitz"]
[Site "Chess.com"]
[Date "2018.06.05"]
[Round "4"]
[White "TBergh98"]
[Black "djano"]
[Result "0-1"]
[WhiteElo "2196"]
[BlackElo "2409"]
[TimeControl "180+2"]
[EndTime "13:57:37 PDT"]
[Termination "djano won by resignation"]

1. d4 {[%clk 0:03:01.9]} 1... Nf6 {[%clk 0:03:00.4]} 2. Bg5 {[%clk 0:02:59.2]}
2... d5 {[%clk 0:03:00.2]} 3. Bxf6 {[%clk 0:02:56.4]} 3... gxf6 {[%clk
0:03:02.1]} 4. e3 {[%clk 0:02:55.8]} 4... c5 {[%clk 0:03:02.8]} 5. Bb5+ {[%clk
0:02:56.6]} 5... Nc6 {[%clk 0:03:03.4]} 6. c4 {[%clk 0:02:56.8]} 6... cxd4
{[%clk 0:03:01.4]} 7. exd4 {[%clk 0:02:56.9]} 7... dxc4 {[%clk 0:02:48.3]} 8. d5
{[%clk 0:02:57.1]} 8... a6 {[%clk 0:02:48.9]} 9. Ba4 {[%clk 0:02:55.9]} 9... b5
{[%clk 0:02:49.9]} 10. dxc6 {[%clk 0:02:57]} 10... bxa4 {[%clk 0:02:50.3]} 11.
Qxa4 {[%clk 0:02:56.8]} 11... Qd5 {[%clk 0:02:41.8]} 12. Nc3 {[%clk 0:02:44.6]}
12... Qxg2 {[%clk 0:02:36.1]} 13. Rd1 {[%clk 0:02:36.9]} 13... Bh6 {[%clk
0:01:25.9]} 14. Qa5 {[%clk 0:01:13.6]} 14... Be6 {[%clk 0:01:04.4]} 15. c7
{[%clk 0:01:05.3]} 15... O-O {[%clk 0:01:05.3]} 16. Nce2 {[%clk 0:00:20.4]}
16... Qxh1 {[%clk 0:01:03.3]} 17. Qc5 {[%clk 0:00:18.8]} 17... Qxh2 {[%clk
0:00:51.8]} 18. Qxe7 {[%clk 0:00:19.4]} 18... Rae8 {[%clk 0:00:47.3]} 19. Qxf6
{[%clk 0:00:20.4]} 19... Bg7 {[%clk 0:00:43.4]} 20. Qd8 {[%clk 0:00:20.1]} 20...
Be5 {[%clk 0:00:32.3]} 21. Qg5+ {[%clk 0:00:18.7]} 21... Kh8 {[%clk 0:00:33.7]}
22. Rd8 {[%clk 0:00:19.2]} 22... f6 {[%clk 0:00:32.7]} 23. Rxe8 {[%clk
0:00:19.3]} 23... Rxe8 {[%clk 0:00:34]} 24. Qe3 {[%clk 0:00:20.6]} 24... Bxc7
{[%clk 0:00:33.9]} 25. Qc5 {[%clk 0:00:21.4]} 25... Qd6 {[%clk 0:00:34.6]} 26.
Qh5 {[%clk 0:00:22]} 26... Re7 {[%clk 0:00:31.4]} 27. Qh6 {[%clk 0:00:22.6]}
27... Rf7 {[%clk 0:00:29.8]} 28. Nf3 {[%clk 0:00:22.4]} 28... Qf8 {[%clk
0:00:30]} 29. Qh5 {[%clk 0:00:23.2]} 29... Re7 {[%clk 0:00:28.3]} 30. Nh4 {[%clk
0:00:24.2]} 30... Bf7 {[%clk 0:00:27.1]} 31. Qf3 {[%clk 0:00:23.5]} 31... Bg6
{[%clk 0:00:26.6]} 32. Qh3 {[%clk 0:00:23.8]} 32... Bd3 {[%clk 0:00:26.2]} 33.
Kd2 {[%clk 0:00:20.7]} 33... Qh6+ {[%clk 0:00:22.7]} 34. Kc3 {[%clk 0:00:20.5]}
34... Bxe2 {[%clk 0:00:20.6]} 35. Nf5 {[%clk 0:00:21.5]} 35... Qxh3+ {[%clk
0:00:21.2]} 36. Kb4 {[%clk 0:00:21.7]} 36... Qxf5 {[%clk 0:00:22.4]} 0-1

[Event "*** Titled Tuesday Blitz"]
[Site "Chess.com"]
[Date "2018.06.05"]
[Round "4"]
[White "AlexanderL"]
[Black "wonderfultime"]
[Result "0-1"]
[WhiteElo "2720"]
[BlackElo "2864"]
[TimeControl "180+2"]
[EndTime "13:57:39 PDT"]
[Termination "wonderfultime won by resignation"]

1. Nf3 {[%clk 0:03:01.9]} 1... Nf6 {[%clk 0:03:00]} 2. c4 {[%clk 0:03:02.6]}
2... c6 {[%clk 0:03:01]} 3. d4 {[%clk 0:02:58]} 3... d5 {[%clk 0:03:02.2]} 4. e3
{[%clk 0:02:59.2]} 4... Bf5 {[%clk 0:03:03]} 5. Nc3 {[%clk 0:02:58.9]} 5... e6
{[%clk 0:03:04.5]} 6. Nh4 {[%clk 0:02:59]} 6... Be4 {[%clk 0:03:06]} 7. f3
{[%clk 0:02:51.5]} 7... Bg6 {[%clk 0:03:07]} 8. Qb3 {[%clk 0:02:52]} 8... Qc7
{[%clk 0:03:08.5]} 9. Bd2 {[%clk 0:02:50.4]} 9... Be7 {[%clk 0:03:10]} 10. Rc1
{[%clk 0:02:37]} 10... Nbd7 {[%clk 0:03:10.8]} 11. g3 {[%clk 0:02:35.8]} 11...
Nb6 {[%clk 0:02:31.7]} 12. cxd5 {[%clk 0:02:32.9]} 12... exd5 {[%clk 0:02:31.8]}
13. Nxg6 {[%clk 0:02:26.7]} 13... hxg6 {[%clk 0:02:32.8]} 14. Kf2 {[%clk
0:02:28.4]} 14... O-O {[%clk 0:02:28.4]} 15. g4 {[%clk 0:02:25.5]} 15... Rae8
{[%clk 0:02:06.1]} 16. h4 {[%clk 0:02:22.3]} 16... Qb8 {[%clk 0:01:50.4]} 17.
Kg2 {[%clk 0:02:21.6]} 17... Bd6 {[%clk 0:01:48.8]} 18. Bd3 {[%clk 0:02:20.3]}
18... Re6 {[%clk 0:01:41]} 19. h5 {[%clk 0:02:08.2]} 19... g5 {[%clk 0:01:42.4]}
20. e4 {[%clk 0:01:59.1]} 20... dxe4 {[%clk 0:01:28.7]} 21. Nxe4 {[%clk
0:02:01]} 21... Bf4 {[%clk 0:01:29.8]} 22. Nxg5 {[%clk 0:01:46.3]} 22... Bxd2
{[%clk 0:00:28]} 23. Nxe6 {[%clk 0:01:46.2]} 23... fxe6 {[%clk 0:00:28.9]} 24.
Qxe6+ {[%clk 0:01:46.1]} 24... Kh8 {[%clk 0:00:30.4]} 25. Rcd1 {[%clk
0:01:23.7]} 25... Nbd5 {[%clk 0:00:31.1]} 26. Kf1 {[%clk 0:01:01.9]} 26... Qf4
{[%clk 0:00:21.3]} 27. Rh3 {[%clk 0:00:38.3]} 27... Ne3+ {[%clk 0:00:20.1]} 28.
Ke2 {[%clk 0:00:39.6]} 28... Nxd1 {[%clk 0:00:21.4]} 29. Kxd1 {[%clk 0:00:41.2]}
29... Bb4 {[%clk 0:00:22.4]} 30. Qe2 {[%clk 0:00:28.9]} 30... Re8 {[%clk
0:00:23.1]} 31. Qf2 {[%clk 0:00:30.2]} 31... Re1+ {[%clk 0:00:22.6]} 32. Kc2
{[%clk 0:00:31.1]} 32... Re3 {[%clk 0:00:20.1]} 33. h6 {[%clk 0:00:29.2]} 33...
g5 {[%clk 0:00:19.1]} 34. a3 {[%clk 0:00:27.9]} 34... Qxd4 {[%clk 0:00:19.8]}
35. Qf1 {[%clk 0:00:24.9]} 35... Bd6 {[%clk 0:00:19.8]} 36. Rh1 {[%clk
0:00:22.6]} 36... Be5 {[%clk 0:00:21.1]} 0-1

[Event "*** Titled Tuesday Blitz"]
[Site "Chess.com"]
[Date "2018.06.05"]
[Round "4"]
[White "dawtonlms"]
[Black "JosefineHeinemann"]
[Result "0-1"]
[WhiteElo "2389"]
[BlackElo "2311"]
[TimeControl "180+2"]
[EndTime "13:57:45 PDT"]
[Termination "JosefineHeinemann won by resignation"]

1. e4 {[%clk 0:03:01.9]} 1... e5 {[%clk 0:02:59.7]} 2. Nf3 {[%clk 0:03:02.5]}
2... Nc6 {[%clk 0:02:59.5]} 3. d4 {[%clk 0:03:02.9]} 3... exd4 {[%clk
0:03:00.4]} 4. Bc4 {[%clk 0:03:03.6]} 4... Nf6 {[%clk 0:03:01.3]} 5. e5 {[%clk
0:03:03.3]} 5... d5 {[%clk 0:03:01.7]} 6. Bb5 {[%clk 0:03:04.5]} 6... Ne4 {[%clk
0:03:03]} 7. Nxd4 {[%clk 0:03:06]} 7... Bd7 {[%clk 0:03:03.6]} 8. Bxc6 {[%clk
0:03:06.3]} 8... bxc6 {[%clk 0:03:05.5]} 9. O-O {[%clk 0:03:06.8]} 9... Bc5
{[%clk 0:03:06.5]} 10. f3 {[%clk 0:03:07.3]} 10... Ng5 {[%clk 0:03:07]} 11. Be3
{[%clk 0:03:08.8]} 11... Bb6 {[%clk 0:03:07.5]} 12. f4 {[%clk 0:03:08.7]} 12...
Ne4 {[%clk 0:03:07.1]} 13. Nd2 {[%clk 0:03:09.1]} 13... Nxd2 {[%clk 0:03:07.8]}
14. Qxd2 {[%clk 0:03:11]} 14... c5 {[%clk 0:03:09.4]} 15. Nb3 {[%clk 0:02:58.3]}
15... d4 {[%clk 0:03:07.9]} 16. Bf2 {[%clk 0:02:58.4]} 16... Bc6 {[%clk
0:03:09.4]} 17. Rfe1 {[%clk 0:02:56.5]} 17... Qd5 {[%clk 0:03:10]} 18. Bh4
{[%clk 0:02:56.7]} 18... O-O {[%clk 0:03:08.3]} 19. Rad1 {[%clk 0:02:52.2]}
19... c4 {[%clk 0:03:04.8]} 20. Nc1 {[%clk 0:02:32.5]} 20... Rfe8 {[%clk
0:03:03.4]} 21. Kh1 {[%clk 0:02:30.2]} 21... Qe6 {[%clk 0:02:56.7]} 22. b3
{[%clk 0:02:25.7]} 22... c3 {[%clk 0:02:56.5]} 23. Qe2 {[%clk 0:02:22.5]} 23...
Qd5 {[%clk 0:02:54.8]} 24. Nd3 {[%clk 0:02:22.7]} 24... a5 {[%clk 0:02:55.1]}
25. a4 {[%clk 0:02:23.1]} 25... f6 {[%clk 0:02:50.9]} 26. Qg4 {[%clk 0:02:19.2]}
26... f5 {[%clk 0:02:50.6]} 27. Qg3 {[%clk 0:02:14.1]} 27... Re6 {[%clk
0:02:51.5]} 28. Bf6 {[%clk 0:02:13.6]} 28... g6 {[%clk 0:02:49.7]} 29. Re2
{[%clk 0:02:13.3]} 29... Rf8 {[%clk 0:02:48.8]} 30. Rde1 {[%clk 0:02:11.2]}
30... Bc5 {[%clk 0:02:48.5]} 31. h4 {[%clk 0:02:10.2]} 31... Be7 {[%clk
0:02:48.9]} 32. Bxe7 {[%clk 0:02:09.9]} 32... Rxe7 {[%clk 0:02:49.4]} 33. Qg5
{[%clk 0:02:07.4]} 33... h6 {[%clk 0:02:47.2]} 34. Qxh6 {[%clk 0:02:01.1]} 34...
Rg7 {[%clk 0:02:46.6]} 35. Qg5 {[%clk 0:02:01.2]} 35... Re8 {[%clk 0:02:46.3]}
36. Kg1 {[%clk 0:02:01.5]} 36... Bb7 {[%clk 0:02:41.5]} 37. e6 {[%clk
0:01:59.3]} 37... c5 {[%clk 0:02:42.2]} 38. Re5 {[%clk 0:01:57.1]} 38... Qc6
{[%clk 0:02:41.7]} 39. Rxc5 {[%clk 0:01:57.1]} 39... Qd6 {[%clk 0:02:38.7]} 40.
Rce5 {[%clk 0:01:46.5]} 40... Ree7 {[%clk 0:02:38.8]} 41. R1e2 {[%clk
0:01:34.8]} 41... Be4 {[%clk 0:02:39.5]} 42. Nf2 {[%clk 0:01:35]} 42... d3
{[%clk 0:02:28.7]} 43. cxd3 {[%clk 0:01:33.7]} 43... Bxd3 {[%clk 0:02:29.8]} 44.
Re1 {[%clk 0:01:18.1]} 44... c2 {[%clk 0:02:30.5]} 45. Qg3 {[%clk 0:01:18.5]}
45... Ba6 {[%clk 0:02:25.7]} 46. Qe3 {[%clk 0:01:19]} 46... Bb7 {[%clk
0:02:24.8]} 47. Rc5 {[%clk 0:01:18.7]} 47... Rc7 {[%clk 0:02:17.7]} 48. Rxc7
{[%clk 0:01:03.7]} 48... Qxc7 {[%clk 0:02:19.6]} 49. Nd3 {[%clk 0:01:04]} 49...
Qc6 {[%clk 0:02:14.4]} 50. Re2 {[%clk 0:01:02.8]} 50... Re7 {[%clk 0:02:15.3]}
51. Nc1 {[%clk 0:01:03.1]} 51... Ba6 {[%clk 0:02:10.5]} 52. Re1 {[%clk
0:01:01.6]} 52... Qd5 {[%clk 0:02:06.4]} 53. h5 {[%clk 0:00:53.4]} 53... gxh5
{[%clk 0:02:06.2]} 54. Qg3+ {[%clk 0:00:53]} 54... Rg7 {[%clk 0:02:06.9]} 55.
Qxg7+ {[%clk 0:00:46.1]} 55... Kxg7 {[%clk 0:02:07.7]} 56. e7 {[%clk 0:00:48]}
56... Bb7 {[%clk 0:01:45.4]} 0-1

[Event "*** Titled Tuesday Blitz"]
[Site "Chess.com"]
[Date "2018.06.05"]
[Round "4"]
[White "Infernal_XaM"]
[Black "Hrant_ChessMood"]
[Result "1-0"]
[WhiteElo "2749"]
[BlackElo "2928"]
[TimeControl "180+2"]
[EndTime "13:57:47 PDT"]
[Termination "Infernal_XaM won by resignation"]

1. d4 {[%clk 0:03:01.9]} 1... Nf6 {[%clk 0:02:59.4]} 2. Nf3 {[%clk 0:03:02.9]}
2... d5 {[%clk 0:03:00.1]} 3. e3 {[%clk 0:03:03.4]} 3... c5 {[%clk 0:02:58.5]}
4. c3 {[%clk 0:03:04.3]} 4... Nbd7 {[%clk 0:02:58.6]} 5. Nbd2 {[%clk 0:03:05.5]}
5... g6 {[%clk 0:02:58.3]} 6. b4 {[%clk 0:03:01.1]} 6... b6 {[%clk 0:02:42.4]}
7. bxc5 {[%clk 0:02:58.4]} 7... bxc5 {[%clk 0:02:42.8]} 8. dxc5 {[%clk
0:02:56.6]} 8... Nxc5 {[%clk 0:02:38.2]} 9. Ba3 {[%clk 0:02:57.7]} 9... Qc7
{[%clk 0:02:17.1]} 10. c4 {[%clk 0:02:57.6]} 10... Qa5 {[%clk 0:02:05.7]} 11.
Bb2 {[%clk 0:02:47.5]} 11... Bg7 {[%clk 0:02:03.3]} 12. cxd5 {[%clk 0:02:46.1]}
12... O-O {[%clk 0:02:00.1]} 13. Bc4 {[%clk 0:02:46.4]} 13... Na4 {[%clk
0:01:35.3]} 14. Bd4 {[%clk 0:02:43.2]} 14... Nb6 {[%clk 0:01:31.1]} 15. Bb3
{[%clk 0:02:34.6]} 15... Ba6 {[%clk 0:01:23.7]} 16. Ne5 {[%clk 0:02:24.5]} 16...
Nbxd5 {[%clk 0:01:15]} 17. Nc6 {[%clk 0:02:18.6]} 17... Qb5 {[%clk 0:01:16.1]}
18. Rc1 {[%clk 0:02:18.7]} 18... Rac8 {[%clk 0:01:06.5]} 19. Rc5 {[%clk
0:02:16.8]} 19... Qb7 {[%clk 0:00:58.8]} 20. Na5 {[%clk 0:01:48.3]} 20... Qd7
{[%clk 0:00:52.6]} 21. Ne4 {[%clk 0:01:42.9]} 21... Rxc5 {[%clk 0:00:38.4]} 22.
Nxc5 {[%clk 0:01:43.2]} 22... Qb5 {[%clk 0:00:39.5]} 23. Qd2 {[%clk 0:01:36.9]}
23... Ne4 {[%clk 0:00:35.9]} 24. Nxe4 {[%clk 0:01:35.2]} 24... Bxd4 {[%clk
0:00:34.7]} 25. exd4 {[%clk 0:01:36.4]} 25... Nf4 {[%clk 0:00:33.4]} 26. Nc4
{[%clk 0:01:27.8]} 26... Nxg2+ {[%clk 0:00:23.5]} 27. Kf1 {[%clk 0:01:28.8]}
27... Nh4 {[%clk 0:00:21.5]} 28. Nc5 {[%clk 0:01:29.4]} 28... Bb7 {[%clk
0:00:17.8]} 29. Nxb7 {[%clk 0:01:27.2]} 29... Qxb7 {[%clk 0:00:19.7]} 30. d5
{[%clk 0:01:28.5]} 30... Rd8 {[%clk 0:00:17.4]} 31. Ne5 {[%clk 0:01:27.8]} 31...
Nf5 {[%clk 0:00:15.9]} 32. Rg1 {[%clk 0:01:27.9]} 32... Qc7 {[%clk 0:00:14.7]}
33. Qf4 {[%clk 0:01:28]} 33... Qc8 {[%clk 0:00:07]} 34. h4 {[%clk 0:01:25.5]}
34... Nd6 {[%clk 0:00:08]} 35. h5 {[%clk 0:01:25.8]} 35... Qh3+ {[%clk
0:00:08.9]} 36. Ke1 {[%clk 0:01:26.2]} 36... Qxh5 {[%clk 0:00:08.8]} 37. Bd1
{[%clk 0:01:18.1]} 37... Qh3 {[%clk 0:00:09.5]} 38. Bf3 {[%clk 0:01:11.6]} 38...
Qc8 {[%clk 0:00:08.8]} 39. Kf1 {[%clk 0:01:11.6]} 39... Rf8 {[%clk 0:00:06.2]}
40. Nc6 {[%clk 0:01:10.4]} 40... Re8 {[%clk 0:00:03.6]} 41. Kg2 {[%clk
0:01:10.9]} 41... Qd7 {[%clk 0:00:02.5]} 42. Re1 {[%clk 0:01:11.4]} 42... Nf5
{[%clk 0:00:03.1]} 43. Re5 {[%clk 0:01:10.7]} 43... Kg7 {[%clk 0:00:02.9]} 44.
Bg4 {[%clk 0:01:11.2]} 44... f6 {[%clk 0:00:03.3]} 45. Bxf5 {[%clk 0:01:11.8]}
45... gxf5 {[%clk 0:00:04.5]} 46. Rxf5 {[%clk 0:01:12.7]} 46... Kf7 {[%clk
0:00:03.9]} 47. Ne5+ {[%clk 0:01:13]} 1-0